Workbook

Sheet weighing_dec2016
A1: Weighing individual larvae grown in plastic cups. Larvae hached 25.-28.11. Freshly detached potato plants cv. Desiree were exchanged every day.
A2: dsRNA treatments were done at 2nd larval stage on 7.12. in 24-well plates (bottom 250 ul 1% agar) on leaf disks (R=1cm; 3x 0.5ul conc 0.5 ug/ul) and 11.12. in 24-well plates (R=1cm; 3x 1ul conc 0.5 ug/ul).
O3: mean larval mass | U3: mass se | AI3: A | AW3: B
A4: 2016-12-08 | B4: dpt [days post 1st treatment] | E4: 1 | N4: dpt [days post 1st treatment] | O4: water | P4: dsEGFP | Q4: dsALAS | R4: dsJHBP | S4: dsMESH | U4: =O4 -> water | V4: =P4 -> dsEGFP | W4: dsALAS | X4: dsJHBP | Y4: mesh
B5: treatments with dsRNAs: | N5: 1 | O5: =B23 -> 10.1875 | P5: =C23 -> 8.375 | Q5: =D23 -> 9.1875 | R5: =E23 -> 9.375 | S5: =F23 -> 10 | U5: =B25 -> 0.4492470553 | V5: =C25 -> 0.4170831252 | W5: =D25 -> 0.4934466368 | X5: =E25 -> 0.4069705149 | Y5: =F25 -> 0.6952217872
A6: Larva | B6: H2O | C6: egfp | D6: alas | E6: JHBP | F6: mesh | N6: 2 | O6: =B48 -> 21.125 | P6: =C48 -> 15.9375 | Q6: =D48 -> 17.125 | R6: =E48 -> 19.0625 | S6: =F48 -> 19.125 | U6: =B50 -> 0.8702250667 | V6: =C50 -> 0.5661915901 | W6: =D50 -> 1.154249395 | X6: =E50 -> 1.066414358 | Y6: =F50 -> 1.538058842
A7: 1 | B7: 12 | C7: 8 | D7: 11 | E7: 8 | F7: 10 | N7: 3 | O7: =B73 -> 42.125 | P7: =C73 -> 31.0625 | Q7: =D73 -> 30.6875 | R7: =E73 -> 36.26666667 | S7: =F73 -> 28 | U7: =B75 -> 1.827737673 | V7: =C75 -> 1.838180146 | W7: =D75 -> 2.298040379 | X7: =E75 -> 2.14531605 | Y7: =F75 -> 3.087272259
A8: 2 | B8: 8 | C8: 5 | D8: 11 | E8: 10 | F8: 11 | N8: 4 | O8: =B98 -> 70.75 | P8: =C98 -> 53.13333333 | Q8: =D98 -> 47.5625 | R8: =E98 -> 58.2 | S8: =F98 -> 36.66666667 | U8: =B100 -> 3.000694364 | V8: =C100 -> 3.262156751 | W8: =D100 -> 3.996841201 | X8: =E100 -> 5.063172354 | Y8: =F100 -> 4.50231422
A9: 3 | B9: 10 | C9: 8 | D9: 7 | E9: 9 | F9: 6 | N9: 5 | O9: =B123 -> 91.625 | P9: =C123 -> 73.26666667 | Q9: =D123 -> 71.78571429 | R9: =E123 -> 83.92857143 | S9: =F123 -> 47.5 | U9: =B125 -> 3.938987814 | V9: =C125 -> 5.28091803 | W9: =D125 -> 3.933557026 | X9: =E125 -> 7.016782277 | Y9: =F125 -> 4.065863992
A10: 4 | B10: 12 | C10: 7 | D10: 12 | E10: 8 | F10: 9 | N10: 6 | O10: =B148 -> 134.8 | P10: =C148 -> 108.4 | Q10: =D148 -> 109.3846154 | R10: =E148 -> 132.0833333 | S10: =F148 -> 83 | U10: =B150 -> 4.351928965 | V10: =C150 -> 7.381081028 | W10: =D150 -> 5.543895349 | X10: =E150 -> 7.028722189 | Y10: =F150 -> 
A11: 5 | B11: 9 | C11: 7 | D11: 7 | E11: 9 | F11: 7 | N11: 7 | O11: =B173 -> 177.4 | P11: =C173 -> 165.9285714 | Q11: =D173 -> 158.6923077 | R11: =E173 -> 159.0833333 | S11: =F173 -> 119 | U11: =B175 -> 4.399472371 | V11: =C175 -> 7.976205169 | W11: =D175 -> 5.482343454 | X11: =E175 -> 7.768276348 | Y11: =F175 -> 
A12: 6 | B12: 12 | C12: 10 | D12: 9 | E12: 11 | F12: 13
A13: 7 | B13: 8 | C13: 7 | D13: 8 | E13: 10 | F13: 7
A14: 8 | B14: 12 | C14: 9 | D14: 9 | E14: 6 | F14: 10
A15: 9 | B15: 9 | C15: 8 | D15: 10 | E15: 10 | F15: 7
A16: 10 | B16: 11 | C16: 8 | D16: 9 | E16: 12 | F16: 14
A17: 11 | B17: 8 | C17: 10 | D17: 6 | E17: 12 | F17: 8
A18: 12 | B18: 10 | C18: 9 | D18: 8 | E18: 8 | F18: 12
A19: 13 | B19: 10 | C19: 10 | D19: 9 | E19: 11 | F19: 14
A20: 14 | B20: 14 | C20: 9 | D20: 12 | E20: 9 | F20: 12
A21: 15 | B21: 9 | C21: 7 | D21: 12 | E21: 8 | F21: 13
A22: 16 | B22: 9 | C22: 12 | D22: 7 | E22: 9 | F22: 7
A23: average: | B23: =AVERAGE(B7:B22) -> 10.1875 | C23: =AVERAGE(C7:C22) -> 8.375 | D23: 9.1875 | E23: 9.375 | F23: =AVERAGE(F7:F22) -> 10
A24: median: | B24: =MEDIAN(B7:B22) -> 10 | C24: =MEDIAN(C7:C22) -> 8 | D24: 9 | E24: 9 | F24: =MEDIAN(F7:F22) -> 10
A25: SE: | B25: =STDEV(B7:B22)/SQRT(COUNTA(B7:B22)) -> 0.4492470553 | C25: =STDEV(C7:C22)/SQRT(COUNTA(C7:C22)) -> 0.4170831252 | D25: 0.4934466368 | E25: 0.4069705149 | F25: 0.6952217872
A26: dead larvae: | B26: =COUNTIF(B7:B22,"dead")/16 -> 0 | C26: =COUNTIF(C7:C22,"dead")/16 -> 0 | D26: 0 | E26: 0 | F26: 0
A27: t-test p-val | C27: =_xlfn.T.TEST($B7:$B22,C7:C22,2,3) -> 0.006026497754 | D27: =_xlfn.T.TEST($B7:$B22,D7:D22,2,3) -> 0.1445344259 | E27: =_xlfn.T.TEST($B7:$B22,E7:E22,2,3) -> 0.1902843743 | F27: 0.8225913655 | H27: slightly biased egfp sample?
A29: 2016-12-09 | B29: dpt [days post 1st treatment] | E29: 2
B30: treatments with dsRNAs:
A31: Larva | B31: H2O | C31: egfp | D31: alas | E31: JHBP | F31: mesh
A32: 1 | B32: 25 | C32: 18 | D32: 12 | E32: 12 | F32: 16
A33: 2 | B33: 24 | C33: 16 | D33: 16 | E33: 14 | F33: 23
A34: 3 | B34: 20 | C34: 17 | D34: 17 | E34: 17 | F34: 29
A35: 4 | B35: 18 | C35: 19 | D35: 25 | E35: 17 | F35: 28
A36: 5 | B36: 20 | C36: 16 | D36: 20 | E36: 19 | F36: 10
A37: 6 | B37: 25 | C37: 14 | D37: 15 | E37: 18 | F37: 12
A38: 7 | B38: 15 | C38: 15 | D38: 19 | E38: 28 | F38: 17
A39: 8 | B39: 19 | C39: 19 | D39: 13 | E39: 19 | F39: 26
A40: 9 | B40: 28 | C40: 17 | D40: 18 | E40: 23 | F40: 24 | AI40: C | AW40: D
A41: 10 | B41: 18 | C41: 15 | D41: 26 | E41: 24 | F41: 18
A42: 11 | B42: 24 | C42: 13 | D42: 9 | E42: 16 | F42: 14
A43: 12 | B43: 19 | C43: 19 | D43: 20 | E43: 18 | F43: 16
A44: 13 | B44: 20 | C44: 11 | D44: 14 | E44: 23 | F44: 25
A45: 14 | B45: 18 | C45: 16 | D45: 21 | E45: 24 | F45: 22
A46: 15 | B46: 21 | C46: 16 | D46: 13 | E46: 15 | F46: 14
A47: 16 | B47: 24 | C47: 14 | D47: 16 | E47: 18 | F47: 12
A48: average: | B48: =AVERAGE(B32:B47) -> 21.125 | C48: =AVERAGE(C32:C47) -> 15.9375 | D48: =AVERAGE(D32:D47) -> 17.125 | E48: =AVERAGE(E32:E47) -> 19.0625 | F48: 19.125 | O48: larval survival | AA48: larval survival
A49: median: | B49: =MEDIAN(B32:B47) -> 20 | C49: =MEDIAN(C32:C47) -> 16 | D49: 16.5 | E49: 18 | F49: =MEDIAN(F32:F47) -> 17.5 | N49: dpt [days post 1st treatment] | O49: H2O | P49: egfp | Q49: alas | R49: JHBP | S49: mesh | Z49: dpt [days post 1st treatment] | AA49: water | AB49: dsEGFP | AC49: dsALAS | AD49: dsJHBP | AE49: dsMESH
A50: SE: | B50: =STDEV(B32:B47)/SQRT(COUNTA(B32:B47)) -> 0.8702250667 | C50: =STDEV(C32:C47)/SQRT(COUNTA(C32:C47)) -> 0.5661915901 | D50: 1.154249395 | E50: 1.066414358 | F50: 1.538058842 | N50: 1 | O50: =1-B26 -> 1 | P50: =1-C26 -> 1 | Q50: 1 | R50: 1 | S50: 1 | Z50: 1 | AA50: 1 | AB50: 1 | AC50: 1 | AD50: 1 | AE50: 1
A51: dead larvae: | B51: =COUNTIF(B32:B47,"dead")/16 -> 0 | C51: =COUNTIF(C32:C47,"dead")/16 -> 0 | D51: 0 | E51: 0 | F51: 0 | N51: 2 | O51: =1-B51 -> 1 | P51: =1-C51 -> 1 | Q51: 1 | R51: 1 | S51: 1 | Z51: =Z52-0.0001 -> 1.9999 | AA51: =AA50 -> 1 | AB51: =AB50 -> 1 | AC51: 1 | AD51: 1 | AE51: 1
A52: t-test p-val | C52: =_xlfn.T.TEST($B32:$B47,C32:C47,2,3) -> 3.470711523e-05 | D52: =_xlfn.T.TEST($B32:$B47,D32:D47,2,3) -> 0.009926736662 | E52: =_xlfn.T.TEST($B32:$B47,E32:E47,2,3) -> 0.1448826277 | F52: 0.2690569216 | N52: 3 | O52: =1-B76 -> 1 | P52: =1-C76 -> 1 | Q52: 1 | R52: 0.9375 | S52: 0.8125 | Z52: 2 | AA52: 1 | AB52: 1 | AC52: 1 | AD52: 1 | AE52: 1
N53: 4 | O53: =1-B101 -> 1 | P53: =1-C101 -> 0.9375 | Q53: 1 | R53: 0.9375 | S53: 0.1875 | Z53: =Z54-0.0001 -> 2.9999 | AA53: =AA52 -> 1 | AB53: =AB52 -> 1 | AC53: =AC52 -> 1 | AD53: =AD52 -> 1 | AE53: =AE52 -> 1
A54: 2016-12-10 | B54: dpt [days post 1st treatment] | E54: 3 | N54: 5 | O54: =1-B126 -> 1 | P54: =1-C126 -> 0.9375 | Q54: 0.875 | R54: 0.875 | S54: 0.125 | Z54: 3 | AA54: 1 | AB54: 1 | AC54: 1 | AD54: 0.9375 | AE54: 0.8125
B55: treatments with dsRNAs: | N55: 6 | O55: =1-B151 -> 0.9375 | P55: =1-C151 -> 0.9375 | Q55: 0.8125 | R55: 0.75 | S55: 0.0625 | Z55: =Z56-0.0001 -> 3.9999 | AA55: =AA54 -> 1 | AB55: =AB54 -> 1 | AC55: =AC54 -> 1 | AD55: =AD54 -> 0.9375 | AE55: =AE54 -> 0.8125
A56: Larva | B56: H2O | C56: egfp | D56: alas | E56: JHBP | F56: mesh | N56: 7 | O56: =1-B176 -> 0.9375 | P56: =1-C176 -> 0.875 | Q56: 0.8125 | R56: 0.75 | S56: 0.0625 | Z56: 4 | AA56: 1 | AB56: 0.9375 | AC56: 1 | AD56: 0.9375 | AE56: 0.1875
A57: 1 | B57: 39 | C57: 28 | D57: 36 | E57: 25 | F57: 18 | Z57: =Z58-0.0001 -> 4.9999 | AA57: =AA56 -> 1 | AB57: =AB56 -> 0.9375 | AC57: =AC56 -> 1 | AD57: =AD56 -> 0.9375 | AE57: =AE56 -> 0.1875
A58: 2 | B58: 55 | C58: 35 | D58: 31 | E58: 37 | F58: 35 | Z58: 5 | AA58: 1 | AB58: 0.9375 | AC58: 0.875 | AD58: 0.875 | AE58: 0.125
A59: 3 | B59: 50 | C59: 23 | D59: 30 | E59: 28 | F59: 48 | Z59: =Z60-0.0001 -> 5.9999 | AA59: =AA58 -> 1 | AB59: =AB58 -> 0.9375 | AC59: =AC58 -> 0.875 | AD59: =AD58 -> 0.875 | AE59: =AE58 -> 0.125
A60: 4 | B60: 35 | C60: 34 | D60: 21 | E60: 33 | F60: 22 | Z60: 6 | AA60: 0.9375 | AB60: 0.9375 | AC60: 0.8125 | AD60: 0.75 | AE60: 0.0625
A61: 5 | B61: 39 | C61: 41 | D61: 30 | E61: 45 | F61: 45 | Z61: =Z62-0.0001 -> 6.9999 | AA61: =AA60 -> 0.9375 | AB61: =AB60 -> 0.9375 | AC61: =AC60 -> 0.8125 | AD61: =AD60 -> 0.75 | AE61: =AE60 -> 0.0625
A62: 6 | B62: 36 | C62: 28 | D62: 27 | E62: 38 | F62: 22 | Z62: 7 | AA62: 0.9375 | AB62: 0.875 | AC62: 0.8125 | AD62: 0.75 | AE62: 0.0625
A63: 7 | B63: 38 | C63: 32 | D63: 43 | E63: 39 | F63: 31
A64: 8 | B64: 35 | C64: 37 | D64: 17 | E64: 26 | F64: 8
A65: 9 | B65: 53 | C65: 29 | D65: 27 | E65: 55 | F65: 44
A66: 10 | B66: 49 | C66: 33 | D66: 16 | E66: 48 | F66: 15
A67: 11 | B67: 35 | C67: 17 | D67: 39 | E67: 27 | F67: 27
A68: 12 | B68: 53 | C68: 34 | D68: 39 | E68: 32 | F68: 19
A69: 13 | B69: 44 | C69: 37 | D69: 45 | E69: 39 | F69: 30
A70: 14 | B70: 38 | C70: 30 | D70: 25 | E70: 40 | F70: dead
A71: 15 | B71: 37 | C71: 42 | D71: 42 | E71: 32 | F71: dead
A72: 16 | B72: 38 | C72: 17 | D72: 23 | E72: dead | F72: dead
A73: average: | B73: =AVERAGE(B57:B72) -> 42.125 | C73: =AVERAGE(C57:C72) -> 31.0625 | D73: 30.6875 | E73: 36.26666667 | F73: 28
A74: median: | B74: =MEDIAN(B57:B72) -> 38.5 | C74: =MEDIAN(C57:C72) -> 32.5 | D74: 30 | E74: 37 | F74: 27
A75: SE: | B75: =STDEV(B57:B72)/SQRT(COUNTA(B57:B72)) -> 1.827737673 | C75: =STDEV(C57:C72)/SQRT(COUNTA(C57:C72)) -> 1.838180146 | D75: 2.298040379 | E75: 2.14531605 | F75: 3.087272259
A76: dead larvae: | B76: =COUNTIF(B57:B72,"dead")/16 -> 0 | C76: =COUNTIF(C57:C72,"dead")/16 -> 0 | D76: 0 | E76: 0.0625 | F76: 0.1875
A77: t-test p-val | C77: =_xlfn.T.TEST($B57:$B72,C57:C72,2,3) -> 0.0001821677882 | D77: =_xlfn.T.TEST($B57:$B72,D57:D72,2,3) -> 0.0005420324692 | E77: =_xlfn.T.TEST($B57:$B72,E57:E72,2,3) -> 0.05106220947 | F77: 0.001798545492
A79: 2016-12-11 | B79: dpt [days post 1st treatment] | E79: 4 | AI79: dsMESH article -- MESH gene expression not measured because all larvae died
B80: treatments with dsRNAs:
A81: Larva | B81: H2O | C81: egfp | D81: alas | E81: JHBP | F81: mesh
A82: 1 | B82: 86 | C82: 56 | D82: 65 | E82: 47 | F82: 45 | AI82: A | AW82: B
A83: 2 | B83: 83 | C83: 45 | D83: 39 | E83: 80 | F83: 16
A84: 3 | B84: 69 | C84: 43 | D84: 83 | E84: 73 | F84: 49
A85: 4 | B85: 61 | C85: 56 | D85: 56 | E85: 33 | F85: dead
A86: 5 | B86: 66 | C86: 74 | D86: 45 | E86: 93 | F86: dead
A87: 6 | B87: 79 | C87: 50 | D87: 52 | E87: 72 | F87: dead
A88: 7 | B88: 57 | C88: 41 | D88: 36 | E88: 78 | F88: dead
A89: 8 | B89: 66 | C89: 36 | D89: 67 | E89: 81 | F89: dead
A90: 9 | B90: 58 | C90: 51 | D90: 44 | E90: 56 | F90: dead
A91: 10 | B91: 85 | C91: 64 | D91: 34 | E91: 50 | F91: dead
A92: 11 | B92: 53 | C92: 70 | D92: 53 | E92: 62 | F92: dead
A93: 12 | B93: 73 | C93: 63 | D93: 53 | E93: 34 | F93: dead
A94: 13 | B94: 80 | C94: 29 | D94: 42 | E94: 45 | F94: dead
A95: 14 | B95: 57 | C95: 68 | D95: 43 | E95: 33 | F95: dead
A96: 15 | B96: 91 | C96: 51 | D96: 35 | E96: 36 | F96: dead
A97: 16 | B97: 68 | C97: dead | D97: 14 | E97: dead | F97: dead
A98: average: | B98: =AVERAGE(B82:B97) -> 70.75 | C98: =AVERAGE(C82:C97) -> 53.13333333 | D98: 47.5625 | E98: 58.2 | F98: 36.66666667
A99: median: | B99: =MEDIAN(B82:B97) -> 68.5 | C99: =MEDIAN(C82:C97) -> 51 | D99: 44.5 | E99: 56 | F99: 45
A100: SE: | B100: =STDEV(B82:B97)/SQRT(COUNTA(B82:B97)) -> 3.000694364 | C100: =STDEV(C82:C97)/SQRT(COUNTA(C82:C97)) -> 3.262156751 | D100: 3.996841201 | E100: 5.063172354 | F100: 4.50231422
A101: dead larvae: | B101: =COUNTIF(B82:B97,"dead")/16 -> 0 | C101: =COUNTIF(C82:C97,"dead")/16 -> 0.0625 | D101: 0 | E101: 0.0625 | F101: 0.8125
A102: t-test p-val | C102: =_xlfn.T.TEST($B82:$B97,C82:C97,2,3) -> 0.0005331520369 | D102: =_xlfn.T.TEST($B82:$B97,D82:D97,2,3) -> 7.523599636e-05 | E102: =_xlfn.T.TEST($B82:$B97,E82:E97,2,3) -> 0.0489728006 | F102: 0.07138284863
A104: 2016-12-12 | B104: dpt [days post 1st treatment] | E104: 5
B105: treatments with dsRNAs:
A106: Larva | B106: H2O | C106: egfp | D106: alas | E106: JHBP | F106: mesh
A107: 1 | B107: 77 | C107: 81 | D107: 99 | E107: 112 | F107: 59
A108: 2 | B108: 80 | C108: 91 | D108: 77 | E108: 84 | F108: 36
A109: 3 | B109: 107 | C109: 96 | D109: 75 | E109: 128 | F109: dead
A110: 4 | B110: 91 | C110: 68 | D110: 91 | E110: 70 | F110: dead
A111: 5 | B111: 90 | C111: 77 | D111: 84 | E111: 72 | F111: dead
A112: 6 | B112: 73 | C112: 62 | D112: 62 | E112: 97 | F112: dead
A113: 7 | B113: 74 | C113: 93 | D113: 81 | E113: 107 | F113: dead
A114: 8 | B114: 75 | C114: 71 | D114: 71 | E114: 81 | F114: dead
A115: 9 | B115: 95 | C115: 80 | D115: 78 | E115: 63 | F115: dead
A116: 10 | B116: 117 | C116: 66 | D116: 53 | E116: 86 | F116: dead
A117: 11 | B117: 84 | C117: 71 | D117: 46 | E117: 124 | F117: dead
A118: 12 | B118: 80 | C118: 95 | D118: 68 | E118: 76 | F118: dead
A119: 13 | B119: 89 | C119: 32 | D119: 74 | E119: 42 | F119: dead
A120: 14 | B120: 111 | C120: 90 | D120: 46 | E120: 33 | F120: dead
A121: 15 | B121: 121 | C121: 26 | D121: dead | E121: dead | F121: dead
A122: 16 | B122: 102 | C122: dead | D122: dead | E122: dead | F122: dead
A123: average: | B123: =AVERAGE(B107:B122) -> 91.625 | C123: =AVERAGE(C107:C122) -> 73.26666667 | D123: 71.78571429 | E123: 83.92857143 | F123: 47.5
A124: median: | B124: =MEDIAN(B107:B122) -> 89.5 | C124: =MEDIAN(C107:C122) -> 77 | D124: 74.5 | E124: 82.5 | F124: 47.5
A125: SE: | B125: =STDEV(B107:B122)/SQRT(COUNTA(B107:B122)) -> 3.938987814 | C125: =STDEV(C107:C122)/SQRT(COUNTA(C107:C122)) -> 5.28091803 | D125: 3.933557026 | E125: 7.016782277 | F125: 4.065863992
A126: dead larvae: | B126: =COUNTIF(B107:B122,"dead")/16 -> 0 | C126: =COUNTIF(C107:C122,"dead")/16 -> 0.0625 | D126: 0.125 | E126: 0.125 | F126: 0.875
A127: t-test p-val | C127: =_xlfn.T.TEST($B107:$B122,C107:C122,2,3) -> 0.01127998272 | D127: =_xlfn.T.TEST($B107:$B122,D107:D122,2,3) -> 0.00185851279 | E127: =_xlfn.T.TEST($B107:$B122,E107:E122,2,3) -> 0.3745679032 | F127: 0.131084477
A129: 2016-12-13 | B129: dpt [days post 1st treatment] | E129: 6
B130: treatments with dsRNAs:
A131: Larva | B131: H2O | C131: egfp | D131: alas | E131: JHBP | F131: mesh
A132: 1 | B132: 148 | C132: 130 | D132: 98 | E132: 121 | F132: 83
A133: 2 | B133: 122 | C133: 119 | D133: 91 | E133: 144 | F133: dead
A134: 3 | B134: 127 | C134: 98 | D134: 138 | E134: 110 | F134: dead
A135: 4 | B135: 130 | C135: 129 | D135: 127 | E135: 146 | F135: dead
A136: 5 | B136: 104 | C136: 127 | D136: 102 | E136: 177 | F136: dead
A137: 6 | B137: 162 | C137: 106 | D137: 100 | E137: 131 | F137: dead
A138: 7 | B138: 151 | C138: 97 | D138: 158 | E138: 123 | F138: dead
A139: 8 | B139: 143 | C139: 111 | D139: 113 | E139: 135 | F139: dead
A140: 9 | B140: 135 | C140: 131 | D140: 92 | E140: 186 | F140: dead
A141: 10 | B141: 138 | C141: 109 | D141: 100 | E141: 90 | F141: dead
A142: 11 | B142: 117 | C142: 107 | D142: 73 | E142: 105 | F142: dead
A143: 12 | B143: 161 | C143: 145 | D143: 117 | E143: 117 | F143: dead
A144: 13 | B144: 148 | C144: 129 | D144: 113 | E144: dead | F144: dead
A145: 14 | B145: 123 | C145: 48 | D145: dead | E145: dead | F145: dead
A146: 15 | B146: 113 | C146: 40 | D146: dead | E146: dead | F146: dead
A147: 16 | B147: dead | C147: dead | D147: dead | E147: dead | F147: dead
A148: average: | B148: =AVERAGE(B132:B147) -> 134.8 | C148: =AVERAGE(C132:C147) -> 108.4 | D148: 109.3846154 | E148: 132.0833333 | F148: 83
A149: median: | B149: =MEDIAN(B132:B147) -> 135 | C149: =MEDIAN(C132:C147) -> 111 | D149: 102 | E149: 127 | F149: 83
A150: SE: | B150: =STDEV(B132:B147)/SQRT(COUNTA(B132:B147)) -> 4.351928965 | C150: =STDEV(C132:C147)/SQRT(COUNTA(C132:C147)) -> 7.381081028 | D150: 5.543895349 | E150: 7.028722189
A151: dead larvae: | B151: =COUNTIF(B132:B147,"dead")/16 -> 0.0625 | C151: =COUNTIF(C132:C147,"dead")/16 -> 0.0625 | D151: 0.1875 | E151: 0.25 | F151: 0.9375
A152: t-test p-val | C152: =_xlfn.T.TEST($B132:$B147,C132:C147,2,3) -> 0.006710759746 | D152: =_xlfn.T.TEST($B132:$B147,D132:D147,2,3) -> 0.002904444247 | E152: =_xlfn.T.TEST($B132:$B147,E132:E147,2,3) -> 0.7731037463
A154: 2016-12-14 | B154: dpt [days post 1st treatment] | E154: 7
B155: treatments with dsRNAs:
A156: Larva | B156: H2O | C156: egfp | D156: alas | E156: JHBP | F156: mesh | H156: SAMPLING DAY
A157: 1 | B157: 199 | C157: 178 | D157: 147 | E157: 203 | F157: 119
A158: 2 | B158: 153 | C158: 80 | D158: 167 | E158: 157 | F158: dead
A159: 3 | B159: 153 | C159: 200 | D159: 159 | E159: 135 | F159: dead
A160: 4 | B160: 192 | C160: 191 | D160: 152 | E160: 142 | F160: dead
A161: 5 | B161: 177 | C161: 168 | D161: 147 | E161: 85 | F161: dead
A162: 6 | B162: 203 | C162: 187 | D162: 125 | E162: 188 | F162: dead
A163: 7 | B163: 158 | C163: 178 | D163: 137 | E163: 170 | F163: dead
A164: 8 | B164: 166 | C164: 182 | D164: 205 | E164: 175 | F164: dead
A165: 9 | B165: 190 | C165: 183 | D165: 159 | E165: 157 | F165: dead
A166: 10 | B166: 191 | C166: 145 | D166: 172 | E166: 141 | F166: dead
A167: 11 | B167: 201 | C167: 122 | D167: 193 | E167: 184 | F167: dead
A168: 12 | B168: 171 | C168: 164 | D168: 142 | E168: 172 | F168: dead
A169: 13 | B169: 164 | C169: 185 | D169: 158 | E169: dead | F169: dead
A170: 14 | B170: 164 | C170: 160 | D170: dead | E170: dead | F170: dead
A171: 15 | B171: 179 | C171: dead | D171: dead | E171: dead | F171: dead
A172: 16 | B172: dead | C172: dead | D172: dead | E172: dead | F172: dead
A173: average: | B173: =AVERAGE(B157:B172) -> 177.4 | C173: =AVERAGE(C157:C172) -> 165.9285714 | D173: 158.6923077 | E173: 159.0833333 | F173: 119
A174: median: | B174: =MEDIAN(B157:B172) -> 177 | C174: =MEDIAN(C157:C172) -> 178 | D174: 158 | E174: 163.5 | F174: 119
A175: SE: | B175: =STDEV(B157:B172)/SQRT(COUNTA(B157:B172)) -> 4.399472371 | C175: =STDEV(C157:C172)/SQRT(COUNTA(C157:C172)) -> 7.976205169 | D175: 5.482343454 | E175: 7.768276348
A176: dead larvae: | B176: =COUNTIF(B157:B172,"dead")/16 -> 0.0625 | C176: =COUNTIF(C157:C172,"dead")/16 -> 0.125 | D176: 0.1875 | E176: 0.25 | F176: 0.9375
A177: t-test p-val | C177: =_xlfn.T.TEST($B157:$B172,C157:C172,2,3) -> 0.2490729219 | D177: =_xlfn.T.TEST($B157:$B172,D157:D172,2,3) -> 0.02163713469 | E177: =_xlfn.T.TEST($B157:$B172,E157:E172,2,3) -> 0.08667726021

Sheet dec2016_survival_data_for_R
A1: larva No | B1: treatment | C1: time | D1: event
A2: 1 | B2: 1_water | C2: 6 | D2: 1
A3: 2 | B3: 1_water | C3: 7 | D3: 0
A4: 3 | B4: 1_water | C4: 7 | D4: 0
A5: 4 | B5: 1_water | C5: 7 | D5: 0
A6: 5 | B6: 1_water | C6: 7 | D6: 0
A7: 6 | B7: 1_water | C7: 7 | D7: 0
A8: 7 | B8: 1_water | C8: 7 | D8: 0
A9: 8 | B9: 1_water | C9: 7 | D9: 0
A10: 9 | B10: 1_water | C10: 7 | D10: 0
A11: 10 | B11: 1_water | C11: 7 | D11: 0
A12: 11 | B12: 1_water | C12: 7 | D12: 0
A13: 12 | B13: 1_water | C13: 7 | D13: 0
A14: 13 | B14: 1_water | C14: 7 | D14: 0
A15: 14 | B15: 1_water | C15: 7 | D15: 0
A16: 15 | B16: 1_water | C16: 7 | D16: 0
A17: 16 | B17: 1_water | C17: 7 | D17: 0
A18: 17 | B18: 2_dsEGFP | C18: 4 | D18: 1
A19: 18 | B19: 2_dsEGFP | C19: 7 | D19: 1
A20: 19 | B20: 2_dsEGFP | C20: 7 | D20: 0
A21: 20 | B21: 2_dsEGFP | C21: 7 | D21: 0
A22: 21 | B22: 2_dsEGFP | C22: 7 | D22: 0
A23: 22 | B23: 2_dsEGFP | C23: 7 | D23: 0
A24: 23 | B24: 2_dsEGFP | C24: 7 | D24: 0
A25: 24 | B25: 2_dsEGFP | C25: 7 | D25: 0
A26: 25 | B26: 2_dsEGFP | C26: 7 | D26: 0
A27: 26 | B27: 2_dsEGFP | C27: 7 | D27: 0
A28: 27 | B28: 2_dsEGFP | C28: 7 | D28: 0
A29: 28 | B29: 2_dsEGFP | C29: 7 | D29: 0
A30: 29 | B30: 2_dsEGFP | C30: 7 | D30: 0
A31: 30 | B31: 2_dsEGFP | C31: 7 | D31: 0
A32: 31 | B32: 2_dsEGFP | C32: 7 | D32: 0
A33: 32 | B33: 2_dsEGFP | C33: 7 | D33: 0
A34: 33 | B34: 3_dsALAS | C34: 5 | D34: 1
A35: 34 | B35: 3_dsALAS | C35: 5 | D35: 1
A36: 35 | B36: 3_dsALAS | C36: 6 | D36: 1
A37: 36 | B37: 3_dsALAS | C37: 7 | D37: 0
A38: 37 | B38: 3_dsALAS | C38: 7 | D38: 0
A39: 38 | B39: 3_dsALAS | C39: 7 | D39: 0
A40: 39 | B40: 3_dsALAS | C40: 7 | D40: 0
A41: 40 | B41: 3_dsALAS | C41: 7 | D41: 0
A42: 41 | B42: 3_dsALAS | C42: 7 | D42: 0
A43: 42 | B43: 3_dsALAS | C43: 7 | D43: 0
A44: 43 | B44: 3_dsALAS | C44: 7 | D44: 0
A45: 44 | B45: 3_dsALAS | C45: 7 | D45: 0
A46: 45 | B46: 3_dsALAS | C46: 7 | D46: 0
A47: 46 | B47: 3_dsALAS | C47: 7 | D47: 0
A48: 47 | B48: 3_dsALAS | C48: 7 | D48: 0
A49: 48 | B49: 3_dsALAS | C49: 7 | D49: 0
A50: 49 | B50: 4_dsJHBP | C50: 3 | D50: 1
A51: 50 | B51: 4_dsJHBP | C51: 5 | D51: 1
A52: 51 | B52: 4_dsJHBP | C52: 6 | D52: 1
A53: 52 | B53: 4_dsJHBP | C53: 6 | D53: 1
A54: 53 | B54: 4_dsJHBP | C54: 7 | D54: 0
A55: 54 | B55: 4_dsJHBP | C55: 7 | D55: 0
A56: 55 | B56: 4_dsJHBP | C56: 7 | D56: 0
A57: 56 | B57: 4_dsJHBP | C57: 7 | D57: 0
A58: 57 | B58: 4_dsJHBP | C58: 7 | D58: 0
A59: 58 | B59: 4_dsJHBP | C59: 7 | D59: 0
A60: 59 | B60: 4_dsJHBP | C60: 7 | D60: 0
A61: 60 | B61: 4_dsJHBP | C61: 7 | D61: 0
A62: 61 | B62: 4_dsJHBP | C62: 7 | D62: 0
A63: 62 | B63: 4_dsJHBP | C63: 7 | D63: 0
A64: 63 | B64: 4_dsJHBP | C64: 7 | D64: 0
A65: 64 | B65: 4_dsJHBP | C65: 7 | D65: 0
A66: 65 | B66: 5_dsMESH | C66: 3 | D66: 1
A67: 66 | B67: 5_dsMESH | C67: 3 | D67: 1
A68: 67 | B68: 5_dsMESH | C68: 3 | D68: 1
A69: 68 | B69: 5_dsMESH | C69: 4 | D69: 1
A70: 69 | B70: 5_dsMESH | C70: 4 | D70: 1
A71: 70 | B71: 5_dsMESH | C71: 4 | D71: 1
A72: 71 | B72: 5_dsMESH | C72: 4 | D72: 1
A73: 72 | B73: 5_dsMESH | C73: 4 | D73: 1
A74: 73 | B74: 5_dsMESH | C74: 4 | D74: 1
A75: 74 | B75: 5_dsMESH | C75: 4 | D75: 1
A76: 75 | B76: 5_dsMESH | C76: 4 | D76: 1
A77: 76 | B77: 5_dsMESH | C77: 4 | D77: 1
A78: 77 | B78: 5_dsMESH | C78: 4 | D78: 1
A79: 78 | B79: 5_dsMESH | C79: 5 | D79: 1
A80: 79 | B80: 5_dsMESH | C80: 6 | D80: 1
A81: 80 | B81: 5_dsMESH | C81: 7 | D81: 0
